bitfinex/quotes_SOLUSD_20260202
["timestamp","ask_amount","ask_price","bid_price","bid_amount"]
[1769998254104,13.35272061,101.92,101.88,12.95481077]
[1769998254307,12.81103303,101.91,101.86,12.95481077]
[1769998254599,3.54098968,101.91,101.87,9.27004335]
[1769998254806,3.54098968,101.91,101.87,19.08573756]
[1769998255011,3.54098968,101.89,101.84,9.27004335]
[1769998255183,12.81103303,101.88,101.83,12.95481077]
[1769998255385,3.54098968,101.88,101.84,3.68476742]
[1769998255598,12.81103303,101.88,101.83,12.95481077]
[1769998255785,12.81103303,101.88,101.83,13.50455898]
[1769998255995,12.81103303,101.87,101.83,3.68476742]
[1769998256201,12.81103303,101.87,101.82,13.5055337]
[1769998256403,12.81103303,101.87,101.83,9.82026741]
[1769998257008,12.81103303,101.87,101.82,13.50561517]
[1769998257009,19.08743977,101.86,101.82,13.50561517]
[1769998257209,22.62794698,101.87,101.82,22.77565852]
[1769998258606,12.81103303,101.86,101.81,9.27004335]
[1769998258816,9.27004335,101.85,101.81,13.50649871]
[1769998258990,3.54098968,101.86,101.81,13.50649871]
[1769998258991,12.81103303,101.86,101.81,13.50649871]
[1769998259310,12.81103303,101.86,101.82,9.82108618]
[1769998260213,12.81103303,101.86,101.81,13.50665764]
[1769998260408,12.81103303,101.86,101.82,9.82080681]
[1769998261020,22.62690523,101.88,101.83,12.95481077]
[1769998261315,3.54098968,101.9,101.86,12.95481077]
[1769998261500,22.62298952,101.92,101.87,12.95481077]
[1769998261702,3.54098968,101.91,101.87,12.95481077]
[1769998261898,13.35210835,101.93,101.89,9.27004335]
[1769998262099,12.81103303,101.97,101.92,3.68476742]
[1769998262316,13.34825051,101.97,101.92,12.95481077]
[1769998262501,3.54098968,101.99,101.95,3.68476742]
[1769998262707,22.61625457,101.99,101.93,12.95481077]
[1769998262904,47.12846164,101.99,101.94,9.80969197]
[1769998263812,22.61625457,101.99,101.94,22.76450274]
[1769998264208,47.12846164,101.99,101.94,3.68476742]
[1769998264405,12.81103303,101.98,101.94,3.68476742]
[1769998264603,12.81103303,101.98,101.93,13.49495762]
[1769998264802,9.27004335,101.96,101.92,9.81076672]
[1769998265007,19.07877311,101.95,101.91,13.49692058]
[1769998265318,12.81103303,101.97,101.92,12.95481077]
[1769998265620,26.89213581,101.99,101.94,12.95481077]
[1769998265994,9.27004335,102.01,101.96,12.95481077]
[1769998266198,19.07350745,102.01,101.96,12.95481077]
[1769998266399,9.27004335,102.0,101.96,3.68476742]
[1769998266613,22.61449713,102.01,101.96,3.68476742]
[1769998267125,9.27004335,102.0,101.96,13.49245906]
[1769998267422,22.61449713,102.01,101.96,22.76250241]
[1769998267616,12.86395119,102.0,101.95,19.07861189]
[1769998267825,9.27004335,101.99,101.95,9.80856854]
[1769998268123,9.27004335,101.99,101.95,13.63601637]
[1769998268322,12.70770418,102.0,101.96,13.63520192]
[1769998268507,16.30161202,102.0,101.95,19.0783473]
[1769998268820,16.30161202,102.0,101.95,9.80830395]
[1769998269029,16.30161202,102.0,101.95,22.90579513]
[1769998269220,26.1055601,102.0,101.96,9.80776775]
[1769998269731,12.86395119,101.98,101.93,13.637848]
[1769998269905,12.86395119,101.96,101.91,3.82744783]
[1769998270224,12.86395119,101.96,101.91,13.63950402]
[1769998270399,9.27004335,101.98,101.93,3.82744783]
[1769998270803,3.59390784,101.99,101.95,13.09749118]
[1769998271216,12.86395119,101.99,101.95,13.6358459]
[1769998271415,22.66887076,101.99,101.95,13.6358459]
[1769998271612,9.27004335,101.97,101.92,3.82744783]
[1769998271816,9.27004335,101.98,101.94,13.63660829]
[1769998272032,22.66887076,101.99,101.95,9.80846195]
[1769998272237,19.07425121,102.0,101.95,22.90595313]
[1769998272415,22.66815905,102.0,101.95,13.63590978]
[1769998272614,22.66815905,102.0,101.95,22.90595313]
[1769998273237,22.66815905,102.0,101.95,13.63590978]
[1769998274250,12.86395119,101.98,101.93,13.09749118]
[1769998274534,9.27004335,101.95,101.92,13.63881204]
[1769998274711,9.27004335,101.95,101.92,3.82744783]
[1769998274911,9.27004335,101.94,101.91,9.81232576]
[1769998275129,9.27004335,101.94,101.91,13.63977359]
[1769998275729,9.27004335,101.93,101.89,3.82744783]
[1769998275934,12.86395119,101.92,101.84,3.82744783]
[1769998276117,3.59390784,101.92,101.85,3.82744783]
[1769998276316,12.86395119,101.91,101.86,3.82744783]
[1769998276612,19.08198234,101.92,101.86,3.82744783]
[1769998276813,9.27004335,101.94,101.89,3.82744783]
[1769998277117,3.59390784,101.95,101.91,3.82744783]
[1769998277740,9.27004335,101.93,101.89,3.82744783]
[1769998278039,19.0834111,101.91,101.87,3.82744783]
[1769998278237,9.27004335,101.9,101.87,3.82744783]
[1769998278543,19.0834111,101.91,101.87,13.64377086]
[1769998278849,19.0834111,101.91,101.87,3.82744783]
[1769998279134,9.27004335,101.9,101.87,3.82744783]
[1769998279317,9.27004335,101.91,101.87,3.82744783]
[1769998279641,12.86395119,101.9,101.86,3.82744783]
[1769998279833,37.93492775,101.92,101.86,3.82744783]
[1769998280031,37.93492775,101.92,101.86,13.64429918]
[1769998280032,19.08292123,101.91,101.86,13.64429918]
[1769998280346,19.08292123,101.91,101.87,3.82744783]
[1769998280933,22.6759027,101.92,101.87,3.82744783]
[1769998281118,9.27004335,101.91,101.87,3.82744783]
[1769998281832,22.6759027,101.92,101.88,3.82744783]
[1769998282020,9.27004335,101.91,101.88,3.82744783]
[1769998282421,22.6759027,101.92,101.88,3.82744783]
[1769998282742,3.59390784,101.96,101.89,3.82744783]
[1769998282919,19.07877311,101.95,101.91,3.82744783]
[1769998283432,3.59390784,101.95,101.89,3.82744783]
[1769998283735,9.27004335,101.92,101.88,3.82744783]
[1769998283926,9.27004335,101.92,101.88,13.64290781]
[1769998284327,22.67653091,101.91,101.86,13.64440059]
[1769998284634,9.27004335,101.9,101.87,3.82744783]
[1769998285141,19.08262307,101.91,101.87,3.82744783]
[1769998286122,19.08262307,101.91,101.87,13.64355969]
[1769998286441,22.67581685,101.92,101.88,3.82744783]
[1769998286632,22.67581685,101.92,101.88,13.64268166]
[1769998286942,22.67581685,101.92,101.88,3.82744783]
[1769998287146,12.86395119,101.89,101.84,3.82744783]
[1769998287324,12.86395119,101.89,101.84,13.64622702]
[1769998287628,9.27004335,101.89,101.85,13.64573795]
[1769998288437,22.67686489,101.91,101.86,3.82744783]
[1769998288636,9.27004335,101.9,101.86,3.82744783]
[1769998289340,22.67686489,101.91,101.86,3.82744783]
[1769998289546,9.27004335,101.9,101.86,3.82744783]
[1769998289757,13.40682154,101.91,101.86,3.82744783]
[1769998289928,19.08295705,101.91,101.87,3.82744783]
[1769998290130,9.8129137,101.91,101.87,3.82744783]
[1769998290449,19.08118879,101.93,101.89,13.64154772]
[1769998290845,19.08118879,101.93,101.89,3.82744783]
[1769998291050,19.08118879,101.93,101.89,13.64186579]
[1769998291432,22.67509663,101.93,101.88,9.8149907]
[1769998291635,9.27004335,101.92,101.88,13.64243853]
[1769998291836,19.08118879,101.93,101.89,13.64176213]
[1769998292034,9.27004335,101.93,101.89,13.64176213]
[1769998292224,19.08076132,101.93,101.89,3.82744783]
[1769998292435,19.08076132,101.93,101.88,9.81504154]
[1769998292436,9.27004335,101.91,101.87,3.82744783]
[1769998292631,12.86395119,101.88,101.83,3.82744783]
[1769998292836,9.27004335,101.86,101.83,3.82744783]
[1769998293036,9.27004335,101.88,101.84,3.82744783]
[1769998294243,9.27004335,101.87,101.84,3.82744783]
[1769998294748,19.08632767,101.88,101.84,13.64671861]
[1769998294942,3.59390784,101.94,101.86,3.82744783]
[1769998295144,12.86395119,101.93,101.88,3.82744783]
[1769998295346,9.27004335,101.92,101.88,3.82744783]
[1769998295641,12.86395119,101.93,101.88,3.82744783]
[1769998296048,19.08256429,101.92,101.88,3.82744783]
[1769998296751,19.08256429,101.92,101.88,13.64288011]
[1769998297151,9.27004335,101.89,101.85,9.81790821]
[1769998297338,9.27004335,101.89,101.85,13.64535604]
[1769998297537,3.59390784,101.9,101.86,13.70583015]
[1769998297738,12.86395119,101.9,101.86,13.70583015]
[1769998297947,9.27004335,101.89,101.86,3.88858173]
[1769998298145,13.05895337,101.87,101.83,3.88858173]
[1769998298355,13.05895337,101.86,101.81,3.88858173]
[1769998298654,9.27004335,101.85,101.82,3.88858173]
[1769998299431,13.60437919,101.88,101.82,13.70942544]
[1769998299637,9.27004335,101.86,101.82,13.70942544]
[1769998300450,3.78891002,101.87,101.82,9.82084371]
[1769998300451,13.06141707,101.87,101.82,9.82084371]
[1769998300648,3.78891002,101.87,101.83,3.88858173]
[1769998300845,19.08745866,101.89,101.84,13.16108878]
[1769998301148,19.08455623,101.92,101.87,13.16108878]
[1769998301649,19.08455623,101.92,101.88,3.88858173]
[1769998302051,9.81204918,101.92,101.88,3.88858173]
[1769998302254,19.08455623,101.92,101.88,3.88858173]
[1769998302447,9.27250705,101.91,101.87,9.81584415]
[1769998302653,9.27250705,101.91,101.86,13.7055843]
[1769998302842,9.27250705,101.91,101.87,13.70488938]
[1769998304654,9.81204918,101.92,101.88,3.88858173]
[1769998305035,22.87346625,101.92,101.88,3.88858173]
[1769998305238,9.27250705,101.91,101.88,3.88858173]
[1769998305840,9.27250705,101.91,101.86,13.7055393]
[1769998306047,9.27250705,101.9,101.87,13.70496496]
[1769998306243,9.27250705,101.91,101.87,13.70496496]
[1769998306448,22.87346625,101.92,101.88,13.6542057]
[1769998306643,9.27250705,101.91,101.88,13.6542057]
[1769998306849,22.87346625,101.92,101.88,13.6542057]
[1769998307155,19.08455623,101.92,101.88,13.6542057]
[1769998307760,9.27250705,101.91,101.88,3.83929871]
[1769998307960,9.27250705,101.91,101.87,9.81598944]
[1769998307961,9.27250705,101.9,101.86,13.65617435]
[1769998308561,19.08651197,101.9,101.86,13.65617435]
[1769998308760,9.27250705,101.88,101.84,31.09929871]
[1769998309058,9.27250705,101.86,101.83,13.6591186]
[1769998309241,9.27250705,101.88,101.84,13.65816079]
[1769998309441,9.27250705,101.88,101.84,3.83929871]
[1769998309653,9.27250705,101.89,101.86,3.83929871]
[1769998309846,22.71659433,101.9,101.86,3.83929871]
[1769998310064,19.08560401,101.91,101.86,13.65666957]
[1769998310249,22.71568637,101.91,101.86,13.65666957]
[1769998310446,22.71568637,101.91,101.86,34.36086192]
[1769998310645,9.27250705,101.91,101.87,3.83929871]
[1769998310853,19.08529874,101.91,101.87,3.83929871]
[1769998311041,22.7153811,101.91,101.87,3.83929871]
[1769998311261,19.08529874,101.91,101.87,3.83929871]
[1769998311466,9.27250705,101.91,101.87,3.83929871]
[1769998311665,22.71456161,101.92,101.87,3.83929871]
[1769998312272,9.27250705,101.91,101.87,3.83929871]
[1769998312652,9.27250705,101.91,101.87,13.65492289]
[1769998313673,22.71464151,101.92,101.87,13.65492289]
[1769998314254,22.71464151,101.92,101.88,3.83929871]
[1769998314666,9.27250705,101.91,101.88,3.83929871]
[1769998314862,22.71464151,101.92,101.88,13.65473927]
[1769998315162,12.90258941,101.94,101.89,3.83929871]
[1769998315774,9.27250705,101.92,101.89,3.83929871]
[1769998315970,9.27250705,101.91,101.87,13.65520383]
[1769998316178,12.90258941,101.92,101.88,13.65462617]
[1769998316355,9.27250705,101.92,101.88,13.65462617]
[1769998316754,19.0833586,101.93,101.89,3.83929871]
[1769998317350,19.08267038,101.94,101.9,3.83929871]
[1769998318170,9.81016333,101.94,101.9,3.83929871]
[1769998318356,19.08267038,101.94,101.9,13.65258305]
[1769998318981,19.08170687,101.95,101.91,3.83929871]
[1769998319154,22.71178923,101.95,101.91,3.83929871]
[1769998319576,22.70986066,101.97,101.92,3.83929871]
[1769998319776,13.43735361,101.97,101.93,3.83929871]
[1769998319954,3.63008236,101.97,101.92,3.83929871]
[1769998320171,3.63008236,101.96,101.92,3.83929871]
[1769998320372,19.08019657,101.97,101.93,3.83929871]
[1769998320572,12.90258941,101.96,101.91,3.83929871]
[1769998320777,9.27250705,101.95,101.91,13.65128492]
[1769998320985,9.27250705,101.93,101.89,13.65332145]
[1769998321170,9.27250705,101.93,101.89,3.83929871]
[1769998321365,9.80392156,102.0,101.93,3.83929871]
[1769998321587,14.92948086,102.01,101.96,13.11180576]
[1769998321765,9.80328655,102.01,101.96,13.11180576]
[1769998321970,12.90258941,101.99,101.94,3.83929871]
[1769998322169,9.27250705,101.95,101.92,3.83929871]
[1769998322482,9.27250705,101.93,101.89,3.83929871]
[1769998322686,9.27250705,101.91,101.87,13.65506641]
[1769998322885,9.27250705,101.89,101.85,3.83929871]
[1769998323086,9.27250705,101.88,101.85,13.6576352]
[1769998323288,9.27250705,101.86,101.83,3.83929871]
[1769998323985,9.27250705,101.85,101.81,13.66126515]
[1769998324166,9.27250705,101.85,101.82,3.83929871]
[1769998324767,9.27250705,101.85,101.82,13.6601113]
[1769998325077,9.27250705,101.83,101.8,0.1]
[1769998325278,9.27250705,101.81,101.8,0.1]
[1769998325463,9.27250705,101.81,101.78,3.83929871]
[1769998325664,9.27250705,101.8,101.78,3.83929871]
[1769998326258,9.27250705,101.81,101.78,3.83929871]
[1769998326463,9.27250705,101.8,101.78,3.83929871]
[1769998326678,9.27250705,101.81,101.78,3.83929871]
[1769998327196,34.36511741,101.85,101.78,9.82435543]
[1769998327374,9.27250705,101.84,101.79,13.11180576]
[1769998327575,19.09034036,101.86,101.82,3.62431915]
[1769998327772,19.09034036,101.86,101.81,9.27250705]
[1769998327773,47.21401649,101.86,101.81,9.27250705]
[1769998328084,12.85269212,101.82,101.77,0.3137979]
[1769998328383,9.27250705,101.82,101.78,3.62431915]
[1769998328779,9.27250705,101.81,101.77,0.3137979]
[1769998328963,37.95499297,101.82,101.78,3.62431915]
[1769998328964,19.09418198,101.82,101.78,3.62431915]
[1769998329360,22.67436705,101.82,101.77,23.03654924]
[1769998329565,22.67436705,101.82,101.78,3.62431915]
[1769998329988,9.27250705,101.8,101.77,1e-08]
[1769998330177,9.27250705,101.79,101.76,0.1]
[1769998330683,9.27250705,101.77,101.76,0.1]
[1769998331594,9.27250705,101.78,101.76,0.1]
[1769998331770,9.27250705,101.81,101.76,12.9968262]
[1769998331963,9.27250705,101.8,101.76,0.1]
[1769998332184,9.27250705,101.79,101.76,0.1]
[1769998332692,9.27250705,101.78,101.76,0.1]
[1769998332993,9.27250705,101.79,101.76,0.1]
[1769998333368,9.27250705,101.78,101.76,0.1]
[1769998333887,3.58018507,101.86,101.78,3.62431915]
[1769998334077,9.27250705,101.83,101.79,3.62431915]
[1769998334274,9.27250705,101.83,101.79,12.8968262]
[1769998334470,9.27250705,101.86,101.82,3.62431915]
[1769998334676,19.09044512,101.86,101.82,3.62431915]
[1769998335195,19.09044512,101.86,101.82,13.44550667]
[1769998335394,9.27250705,101.85,101.82,13.44550667]
[1769998336596,9.27250705,101.85,101.82,3.62431915]
[1769998336773,12.85269212,101.84,101.8,13.44665434]
[1769998336974,9.27250705,101.83,101.8,13.44665434]
[1769998337685,9.27250705,101.84,101.8,13.44665434]
[1769998337876,9.27250705,101.84,101.81,9.82216495]
[1769998338481,9.27250705,101.85,101.82,13.44520285]
[1769998338684,9.27250705,101.84,101.8,3.62431915]
[1769998339092,9.27250705,101.84,101.8,13.44693676]
[1769998339483,9.27250705,101.84,101.81,3.62431915]
[1769998339683,9.27250705,101.84,101.81,13.44647678]
[1769998339901,9.27250705,101.83,101.8,13.44710829]
[1769998340103,9.27250705,101.81,101.78,3.62431915]
[1769998340289,9.27250705,101.8,101.78,3.62431915]
[1769998340603,3.58018507,101.83,101.78,13.44931482]
[1769998340604,9.27250705,101.81,101.78,13.44931482]
[1769998340912,9.27250705,101.81,101.78,3.62431915]
[1769998341091,9.27250705,101.81,101.78,13.44940412]
[1769998341290,9.27250705,101.82,101.78,13.44940412]
[1769998341702,9.27250705,101.8,101.77,13.45002881]
[1769998342012,9.27250705,101.81,101.78,13.44901532]
[1769998342188,9.27250705,101.82,101.78,47.28430484]
[1769998342385,9.27250705,101.82,101.78,38.01179779]
[1769998343106,19.09378027,101.82,101.78,13.44901532]
[1769998343406,9.27250705,101.81,101.78,13.44901532]
[1769998343598,9.27250705,101.8,101.78,3.62431915]
[1769998343793,9.27250705,101.8,101.77,9.82576024]
[1769998343983,9.27250705,101.8,101.77,13.45007939]
[1769998345597,9.27250705,101.81,101.78,3.62431915]
[1769998347915,12.71016788,101.82,101.78,13.44864361]
[1769998348096,9.27250705,101.83,101.79,3.62431915]
[1769998348615,9.27250705,101.83,101.79,12.8968262]
[1769998349011,9.27250705,101.83,101.79,3.62431915]
[1769998349413,9.27250705,101.82,101.79,3.62431915]
[1769998349620,9.27250705,101.81,101.78,9.82462139]
[1769998349822,9.27250705,101.81,101.78,13.44894054]
[1769998350716,9.27250705,101.8,101.77,13.45009986]
[1769998351389,9.27250705,101.8,101.76,0.1]
[1769998351390,9.27250705,101.78,101.76,0.1]
[1769998351593,9.27250705,101.77,101.76,0.1]
[1769998351995,9.27250705,101.77,101.74,13.55279632]
[1769998352217,9.27250705,101.76,101.74,13.55279632]
[1769998353218,9.27250705,101.77,101.74,13.55279632]
[1769998353592,9.27250705,101.77,101.74,0.1]
[1769998353593,9.27250705,101.76,101.74,0.1]
[1769998353797,9.27250705,101.75,101.74,0.1]
[1769998354218,9.27250705,101.76,101.74,0.1]
[1769998354716,9.27250705,101.75,101.74,0.1]
[1769998355219,3.58018507,101.79,101.74,13.55329497]
[1769998355519,9.27250705,101.78,101.74,13.55329497]
[1769998355998,9.27250705,101.77,101.74,13.55329497]
[1769998356416,9.27250705,101.77,101.74,3.72431915]
[1769998356617,9.27250705,101.76,101.74,0.1]
[1769998356921,9.27250705,101.76,101.74,9.92878327]
[1769998357317,9.27250705,101.76,101.74,0.1]
[1769998359204,13.57365266,101.79,101.74,3.77035655]
[1769998359417,9.27250705,101.8,101.77,13.49643496]
[1769998360513,9.28230449,101.79,101.76,9.82671831]
[1769998360713,9.28230449,101.78,101.75,13.49790126]
[1769998362023,9.28230449,101.77,101.75,13.49790126]
[1769998363205,9.28230449,101.77,101.74,13.59879963]
[1769998363836,9.28230449,101.77,101.75,9.82800644]
[1769998364035,9.28230449,101.78,101.76,3.67035655]
[1769998364333,13.03135555,101.79,101.75,13.49836299]
[1769998364506,9.28230449,101.78,101.75,38.06838756]
[1769998365938,13.03135555,101.79,101.75,38.06838756]
[1769998366234,9.28230449,101.76,101.74,9.9282278]
[1769998366421,9.28230449,101.76,101.74,13.49585648]
[1769998366821,9.28230449,101.77,101.74,13.49585648]
[1769998367127,9.28230449,101.76,101.74,0.1]
[1769998367324,9.28230449,101.75,101.74,0.1]
[1769998367522,9.28230449,101.76,101.74,0.1]
[1769998368923,9.28230449,101.78,101.74,3.66762868]
[1769998369323,12.97333094,101.78,101.74,3.66762868]
[1769998369529,9.28230449,101.77,101.74,13.4964502]
[1769998369718,9.28230449,101.77,101.74,3.66762868]
[1769998369917,9.28230449,101.76,101.74,0.1]
[1769998370118,12.97333094,101.77,101.74,0.1]
[1769998370510,9.28230449,101.76,101.74,0.1]
[1769998370834,9.28230449,101.76,101.74,9.92897092]
[1769998371227,12.97333094,101.77,101.74,9.92897092]
[1769998372221,9.28230449,101.76,101.74,9.92897092]
[1769998372734,9.28230449,101.76,101.74,0.1]
[1769998374419,9.28230449,101.76,101.73,13.39712485]
[1769998374420,9.28230449,101.75,101.71,27.3]
[1769998374626,9.28230449,101.74,101.71,13.39900522]
[1769998374932,9.28230449,101.75,101.72,13.39826493]
[1769998375729,3.69102645,101.77,101.73,3.56762868]
[1769998375939,12.97333094,101.77,101.73,9.82985927]
[1769998376122,9.28230449,101.76,101.73,13.39748795]
[1769998376321,19.10793087,101.78,101.74,3.56762868]
[1769998376516,12.97333094,101.78,101.74,3.56762868]
[1769998376937,9.28230449,101.77,101.74,3.56762868]
[1769998377516,9.28230449,101.75,101.72,13.39807946]
[1769998377730,3.69102645,101.76,101.72,13.39807946]
[1769998377928,9.28230449,101.74,101.71,13.39916608]
[1769998378132,9.28230449,101.73,101.71,3.56762868]
[1769998378632,9.28230449,101.72,101.69,13.4008383]
[1769998378924,9.28230449,101.71,101.69,13.40103285]
[1769998380341,9.28230449,101.71,101.69,3.56762868]
[1769998380544,9.28230449,101.7,101.69,3.56762868]
[1769998380835,3.69102645,101.69,101.64,3.56762868]
[1769998381018,9.28230449,101.66,101.64,13.40569934]
[1769998381215,3.69102645,101.68,101.65,3.56762868]
[1769998381216,9.28230449,101.68,101.65,3.56762868]
[1769998381520,9.28230449,101.67,101.65,3.56762868]
[1769998381942,9.28230449,101.66,101.64,3.56762868]
[1769998382441,9.28230449,101.67,101.64,13.40606678]
[1769998383121,9.28230449,101.66,101.64,13.40610901]
[1769998383441,9.28230449,101.67,101.64,13.40610901]
[1769998383641,9.28230449,101.69,101.65,3.56762868]
[1769998383839,9.28230449,101.72,101.68,3.56762868]
[1769998384139,9.28230449,101.73,101.69,13.40071964]
[1769998384322,9.28230449,101.73,101.69,22.68302413]
[1769998384719,13.52051554,101.74,101.7,3.56762868]
[1769998384943,9.28230449,101.76,101.72,3.56762868]
[1769998385140,12.97333094,101.75,101.7,27.3]
[1769998385443,9.28230449,101.73,101.7,30.86762868]
[1769998385747,9.28230449,101.72,101.7,30.86762868]
[1769998386036,9.28230449,101.72,101.7,3.56762868]
[1769998386238,9.28230449,101.72,101.7,13.40038236]
[1769998386444,9.28230449,101.73,101.7,13.40038236]
[1769998387941,9.28230449,101.75,101.71,3.93437716]
[1769998388135,3.77654967,101.76,101.72,3.93437716]
[1769998388136,9.28230449,101.74,101.72,3.93437716]
[1769998388536,9.28230449,101.74,101.71,13.76584515]
[1769998388734,9.28230449,101.75,101.72,13.76519262]
[1769998388938,13.05885416,101.76,101.72,13.76519262]
[1769998389138,9.28230449,101.75,101.72,3.93437716]
[1769998389337,9.28230449,101.76,101.72,13.7652745]
[1769998389721,9.28230449,101.75,101.72,13.7652745]
[1769998389928,9.28230449,101.75,101.72,3.93437716]
[1769998390246,9.28230449,101.74,101.71,13.76592851]
[1769998390449,9.28230449,101.73,101.7,9.83272632]
[1769998390624,9.28230449,101.72,101.7,9.83272632]
[1769998390827,9.28230449,101.72,101.7,13.76710348]
[1769998391044,9.28230449,101.73,101.7,13.76710348]
[1769998391533,31.57527085,101.78,101.72,3.93437716]
[1769998391736,13.05885416,101.78,101.74,3.93437716]
[1769998392159,3.77654967,101.78,101.74,13.21668165]
[1769998392334,19.10669523,101.79,101.75,9.82800982]
[1769998392531,22.8832449,101.79,101.75,9.82800982]
[1769998392753,22.8832449,101.79,101.75,13.76238698]
[1769998393126,13.05885416,101.81,101.76,13.21668165]
[1769998393338,22.88107366,101.81,101.77,3.93437716]
[1769998393544,22.88107366,101.81,101.77,13.21668165]
[1769998393545,9.28230449,101.81,101.77,13.21668165]
[1769998393934,13.05885416,101.79,101.75,13.76238698]
[1769998394157,9.28230449,101.77,101.75,3.93437716]
[1769998394531,9.28230449,101.78,101.75,3.93437716]
[1769998394831,9.28230449,101.78,101.75,13.76231046]
[1769998395031,13.60118738,101.79,101.75,3.93437716]
[1769998395232,13.60118738,101.79,101.75,13.76222228]
[1769998395538,9.28230449,101.78,101.75,13.76222228]
[1769998395736,9.28230449,101.77,101.74,13.762908]
[1769998395939,9.28230449,101.76,101.74,3.93437716]
[1769998396257,9.28230449,101.77,101.74,13.76316089]
[1769998396647,9.28230449,101.76,101.74,3.93437716]
[1769998396955,9.28230449,101.76,101.74,9.82888441]
[1769998397855,9.28230449,101.77,101.74,9.82888441]
[1769998398250,9.28230449,101.77,101.74,13.76326157]
[1769998398440,9.28230449,101.79,101.75,3.93437716]
[1769998399336,9.28230449,101.76,101.73,13.76386378]
[1769998399937,9.28230449,101.75,101.73,3.93437716]
[1769998400237,9.28230449,101.77,101.74,3.93437716]
[1769998400846,9.28230449,101.76,101.74,3.93437716]
[1769998401058,9.28230449,101.75,101.72,3.93437716]
[1769998401270,9.28230449,101.75,101.71,41.06575325]
[1769998401739,9.28230449,101.74,101.71,31.23437716]
[1769998401939,9.28230449,101.73,101.71,31.23437716]
[1769998402379,9.28230449,101.72,101.7,9.8328109]
[1769998402743,13.60591997,101.74,101.7,13.76671768]
[1769998402943,9.28230449,101.72,101.69,13.76772366]
[1769998403544,9.28230449,101.72,101.7,9.83274698]
[1769998403845,24.56718507,101.77,101.72,3.93437716]
[1769998404050,9.28230449,101.75,101.72,3.93437716]
[1769998404355,9.28230449,101.75,101.72,13.765012]
[1769998404540,3.77654967,101.78,101.74,3.93437716]
[1769998404740,9.28230449,101.78,101.74,13.21668165]
[1769998404939,9.28230449,101.79,101.75,3.93437716]
[1769998406160,9.28230449,101.79,101.75,13.76160312]
[1769998407066,9.28230449,101.77,101.73,31.23437716]
[1769998407253,9.28230449,101.76,101.73,41.06380924]
[1769998407460,9.28230449,101.76,101.74,9.82896665]
[1769998408172,9.28230449,101.76,101.73,41.06388239]
[1769998410065,9.28230449,101.77,101.73,37.12950523]
[1769998410367,9.28230449,101.77,101.74,13.76289653]
[1769998410572,9.28230449,101.77,101.74,9.82851937]
[1769998411068,19.10855909,101.77,101.73,41.06399716]
[1769998411269,9.28230449,101.76,101.74,9.82894266]
[1769998411479,9.28230449,101.77,101.74,9.82894266]
[1769998411677,9.28230449,101.77,101.74,13.76331982]
[1769998412668,13.05885416,101.77,101.73,13.76385559]
[1769998412869,9.28230449,101.74,101.72,3.93437716]
[1769998413375,13.05885416,101.73,101.69,9.83333263]
[1769998413688,9.28230449,101.72,101.69,13.76770979]
[1769998414557,9.28230449,101.72,101.7,9.8325055]
[1769998414783,9.28230449,101.74,101.71,3.93437716]
[1769998415075,9.28230449,101.76,101.72,3.93437716]
[1769998415375,9.28230449,101.77,101.73,3.93437716]
[1769998415957,13.05885416,101.78,101.74,3.93437716]
[1769998416152,19.10667135,101.79,101.75,3.93437716]
[1769998416681,9.28230449,101.78,101.74,13.76270268]
[1769998417880,13.05885416,101.79,101.75,3.65931752]
[1769998418576,9.28230449,101.81,101.77,3.65931752]
[1769998418882,9.28230449,101.79,101.75,28.22837737]
[1769998419060,9.28230449,101.78,101.75,13.48682703]
[1769998419260,9.28230449,101.77,101.75,3.65931752]
[1769998420462,13.22211613,101.79,101.76,9.82675132]
[1769998420669,9.28230449,101.79,101.77,9.82601667]
[1769998421068,9.28230449,101.79,101.76,13.48589176]
[1769998422380,23.04726402,101.8,101.76,13.48589176]
[1769998422576,13.22399169,101.8,101.76,13.48589176]
[1769998422976,9.28418005,101.79,101.76,13.48589176]
[1769998423860,13.22399169,101.8,101.76,13.48589176]
[1769998424057,23.04736968,101.8,101.76,13.48589176]
[1769998424281,9.28418005,101.79,101.76,9.82657424]
[1769998424483,13.76247071,101.81,101.77,3.65931752]
[1769998424678,23.04665076,101.81,101.77,3.65931752]
[1769998424867,13.22399169,101.81,101.77,3.65931752]
[1769998425483,23.04628264,101.81,101.77,3.65931752]
[1769998426183,9.28418005,101.8,101.77,13.4848949]
[1769998426685,13.12475919,101.8,101.76,13.71451755]
[1769998426877,9.28418005,101.79,101.76,13.71451755]
[1769998427383,9.28418005,101.78,101.75,13.71580911]
[1769998427984,9.28418005,101.79,101.76,13.71493535]
[1769998428373,22.9491863,101.79,101.75,13.71554007]
[1769998428572,13.12475919,101.79,101.76,9.82694909]
[1769998428773,9.82373603,101.8,101.76,9.82694909]
[1769998428774,9.28418005,101.8,101.76,13.71489755]
[1769998428980,9.28418005,101.8,101.77,3.88794846]
[1769998429378,13.66329691,101.81,101.77,3.88794846]
[1769998429379,22.94747696,101.81,101.77,3.88794846]
[1769998429571,9.82174439,101.82,101.78,3.88794846]
[1769998429773,22.94559715,101.83,101.78,3.88794846]
[1769998429974,9.28418005,101.82,101.78,3.88794846]